fUSD/lending_fUSD_20251225
["ID","MTS","AMOUNT","RATE_DAILY","PERIOD"]
[399777991,1766664650506,-281.85288871,0.00016643,2]
[399777992,1766664650517,-268.21444293,0.00016643,2]
[399777993,1766664650529,-151.84637891,0.00016643,2]
[399777994,1766664650540,-389.55243689,0.00016643,2]
[399777995,1766664650550,-199.61844687,0.00016643,2]
[399777996,1766664650561,-188.33568841,0.00016643,2]
[399777997,1766664650573,-150.0,0.00016647,2]
[399777998,1766664650583,-150.0,0.00016647,2]
[399777999,1766664650595,-150.0,0.00016651,2]
[399778000,1766664650605,-500.0,0.00016657,2]
[399778001,1766664650617,-281.85288871,0.0001666,2]
[399778002,1766664650627,-268.21444293,0.0001666,2]
[399778003,1766664650638,-151.84637891,0.0001666,2]
[399778004,1766664650649,-389.55243689,0.0001666,2]
[399778005,1766664650660,-199.61844687,0.0001666,2]
[399778006,1766664650671,-188.33568841,0.0001666,2]
[399778007,1766664650683,-150.0,0.00016675,2]
[399778008,1766664650694,-281.85288871,0.00016677,2]
[399778009,1766664650705,-268.21444293,0.00016677,2]
[399778010,1766664650715,-151.84637891,0.00016677,2]
[399778011,1766664650727,-389.55243689,0.00016677,2]
[399778012,1766664650741,-199.61844687,0.00016677,2]
[399778013,1766664650752,-188.33568841,0.00016677,2]
[399778014,1766664650763,-150.0,0.00016677,2]
[399778015,1766664650773,-150.0,0.00016681,2]
[399778016,1766664650784,-218.80351721,0.00016685,2]
[399778017,1766664650794,-150.0,0.00016687,2]
[399778018,1766664650805,-281.85288871,0.00016695,2]
[399778019,1766664650815,-268.21444293,0.00016695,2]
[399778020,1766664650826,-151.84637891,0.00016695,2]
[399778021,1766664650837,-389.55243689,0.00016695,2]
[399778022,1766664650847,-199.61844687,0.00016695,2]
[399778023,1766664650859,-188.33568841,0.00016695,2]
[399778024,1766664650870,-150.0,0.00016699,2]
[399778025,1766664650881,-150.0,0.00016703,2]
[399778026,1766664650892,-150.0,0.00016703,2]
[399778027,1766664650903,-281.85288871,0.00016712,2]
[399778028,1766664650914,-268.21444293,0.00016712,2]
[399778029,1766664650924,-151.84637891,0.00016712,2]
[399778030,1766664650935,-389.55243689,0.00016712,2]
[399778031,1766664650945,-199.61844687,0.00016712,2]
[399778032,1766664650956,-188.33568841,0.00016712,2]
[399778033,1766664650967,-150.0,0.00016715,2]
[399778034,1766664650978,-150.0,0.00016715,2]
[399778035,1766664650989,-150.0,0.00016723,2]
[399778036,1766664650999,-281.85288871,0.00016729,2]
[399778037,1766664651010,-268.21444293,0.00016729,2]
[399778038,1766664651021,-151.84637891,0.00016729,2]
[399778039,1766664651032,-389.55243689,0.00016729,2]
[399778040,1766664651043,-199.61844687,0.00016729,2]
[399778041,1766664651055,-188.33568841,0.00016729,2]
[399778042,1766664651070,-150.0,0.00016729,2]
[399778043,1766664651082,-500.0,0.00016731,2]
[399778044,1766664651093,-500.0,0.00016731,2]
[399778045,1766664651105,-500.0,0.00016731,2]
[399778046,1766664651115,-308.61264672,0.00016731,2]
[399778047,1766664651126,-598.60555363,0.00016731,2]
[399778048,1766664651138,-500.0,0.00016731,2]
[399778049,1766664651149,-559.28446362,0.00016731,2]
[399778050,1766664651160,-500.0,0.00016731,2]
[399778051,1766664651171,-500.0,0.00016731,2]
[399778052,1766664651182,-500.0,0.00016731,2]
[399778053,1766664651192,-500.0,0.00016731,2]
[399778054,1766664651203,-500.0,0.00016731,2]
[399778055,1766664651215,-500.0,0.00016731,2]
[399778056,1766664651226,-500.0,0.00016731,2]
[399778057,1766664651237,-207.3850141,0.00016731,2]
[399778058,1766664651248,-500.0,0.00016731,2]
[399778059,1766664651258,-500.0,0.00016731,2]
[399778060,1766664651270,-500.0,0.00016731,2]
[399778061,1766664651280,-500.0,0.00016731,2]
[399778062,1766664651291,-150.0,0.00016737,2]
[399778063,1766664651303,-281.85288871,0.00016746,2]
[399778064,1766664651314,-268.21444293,0.00016746,2]
[399778065,1766664651325,-151.84637891,0.00016746,2]
[399778066,1766664651336,-389.55243689,0.00016746,2]
[399778067,1766664651348,-199.61844687,0.00016746,2]
[399778068,1766664651359,-188.33568841,0.00016746,2]
[399778069,1766664651371,-150.0,0.00016747,2]
[399778070,1766664651381,-150.0,0.00016748,2]
[399778071,1766664651392,-281.85288871,0.00016763,2]
[399778072,1766664651402,-268.21444293,0.00016763,2]
[399778073,1766664651413,-151.84637891,0.00016763,2]
[399778074,1766664651424,-389.55243689,0.00016763,2]
[399778075,1766664651435,-199.61844687,0.00016763,2]
[399778076,1766664651446,-188.33568841,0.00016763,2]
[399778077,1766664651458,-150.0,0.00016771,2]
[399778078,1766664651469,-281.85288871,0.0001678,2]
[399778079,1766664651480,-268.21444293,0.0001678,2]
[399778080,1766664651491,-151.84637891,0.0001678,2]
[399778081,1766664651502,-389.55243689,0.0001678,2]
[399778082,1766664651513,-199.61844687,0.0001678,2]
[399778083,1766664651524,-188.33568841,0.0001678,2]
[399778084,1766664651535,-150.0,0.0001678,2]
[399778085,1766664651546,-150.0,0.00016782,2]
[399778086,1766664651557,-150.0,0.00016782,2]
[399778087,1766664651567,-150.0,0.00016786,2]
[399778088,1766664651579,-150.0,0.00016795,2]
[399778089,1766664651590,-281.85288871,0.00016798,2]
[399778090,1766664651601,-268.21444293,0.00016798,2]
[399778091,1766664651611,-151.84637891,0.00016798,2]
[399778092,1766664651622,-389.55243689,0.00016798,2]
[399778093,1766664651633,-199.61844687,0.00016798,2]
[399778094,1766664651644,-188.33568841,0.00016798,2]
[399778095,1766664651655,-150.0,0.00016798,2]
[399778096,1766664651666,-1000.0,0.0001681,2]
[399778097,1766664651677,-281.85288871,0.00016815,2]
[399778098,1766664651688,-268.21444293,0.00016815,2]
[399778099,1766664651698,-151.84637891,0.00016815,2]
[399778100,1766664651709,-389.55243689,0.00016815,2]
[399778101,1766664651719,-199.61844687,0.00016815,2]
[399778102,1766664651730,-188.33568841,0.00016815,2]
[399778103,1766664652195,-150.0,0.00016816,2]
[399778104,1766664652225,-150.0,0.00016819,2]
[399778105,1766664652240,-500.0,0.00016829,2]
[399778106,1766664652250,-500.0,0.00016829,2]
[399778107,1766664652260,-201810.50428143,0.0001683,2]
[399778108,1766664652270,-281.85288871,0.00016832,2]
[399778109,1766664652280,-268.21444293,0.00016832,2]
[399778110,1766664652291,-151.84637891,0.00016832,2]
[399778111,1766664652301,-389.55243689,0.00016832,2]
[399778112,1766664652311,-199.61844687,0.00016832,2]
[399778113,1766664652322,-188.33568841,0.00016832,2]
[399778114,1766664652333,-150.0,0.00016832,2]
[399778115,1766664652343,-150.0,0.00016836,2]
[399778116,1766664652352,-150.0,0.00016843,2]
[399778117,1766664652363,-1000.0,0.00016843,2]
[399778118,1766664652373,-150.0,0.00016845,2]
[399778119,1766664652383,-150.0,0.00016847,2]
[399778120,1766664652392,-281.85288871,0.00016849,2]
[399778121,1766664652402,-268.21444293,0.00016849,2]
[399778122,1766664652412,-151.84637891,0.00016849,2]
[399778123,1766664652422,-389.55243689,0.00016849,2]
[399778124,1766664652431,-199.61844687,0.00016849,2]
[399778125,1766664652441,-188.33568841,0.00016849,2]
[399778126,1766664652450,-150.0,0.0001685,2]
[399778127,1766664652460,-150.0,0.0001685,2]
[399778128,1766664652470,-200.0,0.00016864,2]
[399778129,1766664652479,-281.85288871,0.00016866,2]
[399778130,1766664652489,-268.21444293,0.00016866,2]
[399778131,1766664652498,-151.84637891,0.00016866,2]
[399778132,1766664652508,-389.55243689,0.00016866,2]
[399778133,1766664652518,-199.61844687,0.00016866,2]
[399778134,1766664652527,-188.33568841,0.00016866,2]
[399778135,1766664652537,-150.0,0.00016867,2]
[399778136,1766664652547,-281.85288871,0.00016883,2]
[399778137,1766664652556,-268.21444293,0.00016883,2]
[399778138,1766664652566,-151.84637891,0.00016883,2]
[399778139,1766664652576,-389.55243689,0.00016883,2]
[399778140,1766664652585,-199.61844687,0.00016883,2]
[399778141,1766664652596,-188.33568841,0.00016883,2]
[399778142,1766664652606,-150.0,0.00016883,2]
[399778143,1766664652616,-150.0,0.00016884,2]
[399778144,1766664652627,-150.0,0.00016886,2]
[399778145,1766664652638,-150.0,0.00016891,2]
[399778146,1766664652648,-206.41016771,0.00016892,2]
[399778147,1766664652658,-10000.0,0.000169,2]
[399778148,1766664652667,-170.28248417,0.000169,2]
[399778149,1766664652677,-47998.36032184,0.000169,2]
[399778150,1766664652686,-531.21073376,0.000169,2]
[399778151,1766664652696,-797.67684347,0.000169,2]
[399778152,1766664652705,-156.81485744,0.000169,2]
[399778153,1766664652715,-15401.10219233,0.000169,2]
[399778154,1766664652725,-2132.47496028,0.000169,2]
[399778155,1766664652735,-263.03989768,0.000169,2]
[399778156,1766664652745,-281.85288871,0.00016901,2]
[399778157,1766664652754,-268.21444293,0.00016901,2]
[399778158,1766664652764,-151.84637891,0.00016901,2]
[399778159,1766664652775,-389.55243689,0.00016901,2]
[399778160,1766664652784,-199.61844687,0.00016901,2]
[399778161,1766664652794,-188.33568841,0.00016901,2]
[399778162,1766664652804,-150.0,0.00016915,2]
[399778163,1766664652815,-281.85288871,0.00016918,2]
[399778164,1766664652824,-268.21444293,0.00016918,2]
[399778165,1766664652834,-151.84637891,0.00016918,2]
[399778166,1766664652845,-389.55243689,0.00016918,2]
[399778167,1766664652855,-199.61844687,0.00016918,2]
[399778168,1766664652865,-188.33568841,0.00016918,2]
[399778169,1766664652875,-150.0,0.00016918,2]
[399778170,1766664652886,-150.0,0.00016918,2]
[399778171,1766664652896,-150.0,0.00016927,2]
[399778172,1766664652905,-281.85288871,0.00016935,2]
[399778173,1766664652915,-268.21444293,0.00016935,2]
[399778174,1766664652925,-151.84637891,0.00016935,2]
[399778175,1766664652934,-389.55243689,0.00016935,2]
[399778176,1766664652944,-199.61844687,0.00016935,2]
[399778177,1766664652954,-188.33568841,0.00016935,2]
[399778178,1766664652964,-150.0,0.00016935,2]
[399778179,1766664652973,-150.0,0.00016936,2]
[399778180,1766664652983,-150.0,0.00016938,2]
[399778181,1766664652994,-281.85288871,0.00016952,2]
[399778182,1766664653003,-268.21444293,0.00016952,2]
[399778183,1766664653013,-151.84637891,0.00016952,2]
[399778184,1766664653023,-389.55243689,0.00016952,2]
[399778185,1766664653034,-199.61844687,0.00016952,2]
[399778186,1766664653044,-188.33568841,0.00016952,2]
[399778187,1766664653054,-150.0,0.00016952,2]
[399778188,1766664653067,-150.0,0.00016962,2]
[399778189,1766664653078,-281.85288871,0.00016969,2]
[399778190,1766664653088,-268.21444293,0.00016969,2]
[399778191,1766664653098,-151.84637891,0.00016969,2]
[399778192,1766664653109,-389.55243689,0.00016969,2]
[399778193,1766664653118,-199.61844687,0.00016969,2]
[399778194,1766664653128,-188.33568841,0.00016969,2]
[399778195,1766664653139,-500.0,0.0001697,2]
[399778196,1766664653150,-500.0,0.0001697,2]
[399778197,1766664653161,-800.78551976,0.0001697,2]
[399778198,1766664653171,-500.0,0.00016973,2]
[399778199,1766664653182,-150.0,0.00016973,2]
[399778200,1766664653192,-505.30351694,0.00016983,2]
[399778201,1766664653202,-218.14975262,0.00016983,2]
[399778202,1766664653213,-281.85288871,0.00016986,2]
[399778203,1766664653223,-268.21444293,0.00016986,2]
[399778204,1766664653234,-151.84637891,0.00016986,2]
[399778205,1766664653244,-183.38649304,0.00016986,2]
[399778206,1766664653255,-389.55243689,0.00016986,2]
[399778207,1766664653265,-169.35594183,0.00016986,2]
[399778208,1766664653275,-199.61844687,0.00016986,2]
[399778209,1766664653286,-216.83783771,0.00016986,2]
[399778210,1766664653295,-188.33568841,0.00016986,2]
[399778211,1766664653306,-249.72561224,0.00016986,2]
[399778212,1766664653317,-195.90301911,0.00016986,2]
[399778213,1766664653327,-167.87580032,0.00016986,2]
[399778214,1766664653337,-195.3247393,0.00016986,2]
[399778215,1766664653347,-269.94910163,0.00016986,2]
[399778216,1766664653357,-247.55174509,0.00016986,2]
[399778217,1766664653367,-176.41435156,0.00016986,2]
[399778218,1766664653378,-57720.3931582,0.0001699,2]
[399778219,1766664653388,-14103.5383306,0.0001699,2]
[399778220,1766664653398,-592.70788689,0.0001699,2]
[399778221,1766664653408,-592.70788689,0.0001699,2]
[399778222,1766664653419,-151.0,0.00016997,2]
[399778223,1766664653429,-151.0,0.00016997,2]
[399778224,1766664653439,-151.0,0.00016997,2]
[399778225,1766664653449,-151.0,0.00016997,2]
[399778226,1766664653461,-1060.87558749,0.00016999,5]
[399778227,1766664653471,-500.0,0.00016999,2]
[399778228,1766664653482,-500.0,0.00016999,2]
[399778229,1766664653491,-500.0,0.00016999,2]
[399778230,1766664653502,-500.0,0.00016999,2]
[399778231,1766664653512,-500.0,0.00016999,2]
[399778232,1766664653522,-451.48949058,0.00016999,2]
[399778233,1766664653533,-300.0,0.00016999,2]
[399778234,1766664653543,-666.0,0.00016999,2]
[399778235,1766664653554,-300.0,0.00016999,2]
[399778236,1766664653565,-300.0,0.00016999,2]
[399778237,1766664653577,-666.0,0.00016999,2]
[399778238,1766664653587,-1325785.08639269,0.00017,2]
[399778239,1766664653791,-30868.43746983,0.00017,2]
[399778240,1766664653900,-10250.8,0.00017,2]
[399778241,1766664653916,-1759.8369796,0.00017,2]
[399778242,1766664653928,-644.20590704,0.00017,2]
[399778243,1766664653940,-500.3348243,0.00017,2]
[399778244,1766664653959,-1375.598704,0.00017,2]
[399778245,1766664654670,-1.7e-07,0.00017,2]
[399778246,1766664654686,-3828.86735665,0.00017,2]
[399778247,1766664654697,-5678.50813704,0.00017,2]
[399778248,1766664654709,-5879577.02827453,0.00017,2]
[399778249,1766664654718,-1558198.71045026,0.00017,2]
[399778250,1766664654729,-150.0,0.00017,2]
[399778251,1766664654738,-2000.0,0.00017,2]
[399778252,1766664654747,-250.0,0.00017,2]
[399778253,1766664654757,-200.0,0.00017,2]
[399778254,1766664654767,-500.0,0.00017,2]
[399778255,1766664654776,-306.79834017,0.00017028,2]
[399778256,1766664654786,-4783.0,0.00017056,2]
[399778257,1766664654795,-300.0,0.00017216,2]
[399778258,1766664654805,-159.31,0.00017299,2]
[399778259,1766664654814,-1600.0,0.00017371,2]
[399778260,1766664654825,-177.43,0.00017532,2]
[399778261,1766664654835,-159.91,0.00017579,2]
[399778262,1766664654846,-403.0,0.000177,5]
[399778263,1766664654863,-500.0,0.00017808,2]
[399778264,1766664654874,-300.0,0.00017828,2]
[399778265,1766664654884,-30000.0,0.00017829,2]
[399778266,1766664654893,-500.0,0.00017835,2]
[399778267,1766664654902,-162.00371102,0.00017863,2]
[399778268,1766664654912,-300.0,0.00017999,2]
[399778269,1766664654921,-214372.85418948,0.00018,2]
[399778270,1766664654931,-3146.9247663,0.00018043,2]
[399778271,1766664654940,-420.54,0.00018082,2]
[399778272,1766664654950,-354.70063134,0.00018231,2]
[399778273,1766664654960,-702.173827,0.00018278,2]
[399778274,1766664654970,-12879.1605692,0.00018319,2]
[399778275,1766664654979,-1610.0,0.00018351,2]
[399778276,1766664654989,-3459.0,0.00018351,2]
[399778277,1766664654999,-618.307,0.00018351,2]
[399778278,1766664655009,-1327.0,0.00018351,2]
[399778279,1766664655025,-1271.446,0.00018351,2]
[399778280,1766664655043,-432.0,0.00018351,2]
[399778281,1766664655053,-912.0,0.00018351,2]
[399778282,1766664655063,-1198.0,0.00018351,2]
[399778283,1766664655075,-4807.0,0.00018351,2]
[399778284,1766664655085,-2430.0,0.00018351,2]
[399778285,1766664655096,-564.0,0.00018351,2]
[399778286,1766664655106,-1258.14,0.00018533,2]
[399778287,1766664655118,-2873.7291603,0.00018616,2]
[399778288,1766664655128,-420.54,0.0001876,2]
[399778289,1766664655139,-16394.1053773,0.00018767,2]
[399778290,1766664655149,-151.03,0.000188,2]
[399778291,1766664655159,-151.03,0.000188,2]
[399778292,1766664655169,-151.03,0.000188,2]
[399778293,1766664655178,-152.40600789,0.00018832,2]
[399778294,1766664655188,-231.28369723,0.00018908,2]
[399778295,1766664655197,-150.0,0.00018982,2]
[399778296,1766664655207,-200.0,0.00018982,2]
[399778297,1766664655218,-152.0,0.00018982,2]
[399778298,1766664655228,-200.0,0.00018982,2]
[399778299,1766664655238,-150.891,0.00018982,2]
[399778300,1766664655248,-217.814,0.00018982,2]
[399778301,1766664655258,-256.083,0.00018982,2]
[399778302,1766664655267,-156.406,0.00018982,2]
[399778303,1766664655278,-250.0,0.00018982,2]
[399778304,1766664655289,-243.792,0.00018982,2]
[399778305,1766664655298,-78.49846301,0.00018982,2]
[399778306,1766664655324,-133.04453699,0.00018982,2]
[399778307,1766664655334,-250.0,0.00018982,2]
[399778308,1766664655344,-250.0,0.00018982,2]
[399778309,1766664655353,-167.0,0.00018982,2]
[399778310,1766664655362,-227.273,0.00018982,2]
[399778311,1766664655371,-300.0,0.00018999,2]
[399778312,1766664655381,-711.01870511,0.00019,2]
[399778313,1766664655486,-151.01,0.00014239,2]
[399778314,1766664655496,-3372.99,0.00018351,2]
[399778315,1766664655508,-3161.01,0.00018351,2]
[399778316,1766664655518,-5671.77853942,0.00019,2]
[399778317,1766664655795,-2169.16492796,0.00019,2]
[399778318,1766664655807,-459.58986104,0.00019,2]
[399778319,1766664655825,-2128.79801935,0.00019,2]
[399778320,1766664655836,-655.3938732,0.00019,2]
[399778321,1766664655848,-1203.12010318,0.00019,2]
[399778323,1766664675142,194.97519761,0.0001059,2]
[399778324,1766664679600,500.0,0.0001059,2]
[399778326,1766664699015,500.0,0.0001059,2]
[399778327,1766664731628,500.0,0.0001059,2]
[399778328,1766664749983,3470.26314151,0.00010491,2]
[399778329,1766664750010,10000.01,0.00010491,2]
[399778330,1766664750036,10000.01,0.00010491,2]
[399778331,1766664750062,10000.01,0.00010491,2]
[399778332,1766664750090,10000.01,0.00010491,2]
[399778333,1766664750121,10000.01,0.00010491,2]
[399778334,1766664750148,10000.01,0.00010491,2]
[399778335,1766664750179,10000.01,0.00010491,2]
[399778336,1766664750205,10000.01,0.00010491,2]
[399778337,1766664750232,10000.01,0.00010491,2]
[399778338,1766664750702,-1060.1599741,0.00010491,2]
[399778339,1766664752774,-299.3087587,0.00010491,2]
[399778340,1766664755104,-256.79390013,0.00010491,2]
[399778342,1766664758788,-431.75930457,0.00010491,2]
[399778343,1766664761202,-1597.77166088,0.00010491,2]
[399778344,1766664761319,-10000.01,0.00010491,2]
[399778345,1766664761441,-10000.01,0.00010491,2]
[399778346,1766664761503,-166.93819676,0.00010491,2]
[399778347,1766664761565,-10000.01,0.00010491,2]
[399778348,1766664761696,-10000.01,0.00010491,2]
[399778349,1766664761789,-10000.01,0.00010491,2]
[399778350,1766664761894,-10000.01,0.00010491,2]
[399778351,1766664762038,-10000.01,0.00010491,2]
[399778352,1766664762145,-10000.01,0.00010491,2]
[399778353,1766664762894,-243.22392147,0.00010491,2]
[399778354,1766664765502,-302.00611386,0.00010491,2]
[399778355,1766664767002,-238.0,0.00010491,2]
[399778356,1766664767360,-10000.01,0.00010491,2]
[399778357,1766664769731,-319.47994353,0.00010491,2]
[399778358,1766664772664,-279.46116403,0.00010491,2]
[399778359,1766664774554,-10000.01,0.00010491,2]
[399778360,1766664774846,-243.80804706,0.00010491,2]
[399778361,1766664776400,-390.0,0.00010491,2]
[399778362,1766664777908,-242.78048737,0.00010491,2]
[399778363,1766664778163,-10000.01,0.00010491,2]
[399778364,1766664778439,-10000.01,0.00010491,2]
[399778365,1766664778535,-10000.01,0.00010491,2]
[399778366,1766664778633,-10000.01,0.00010491,2]
[399778367,1766664778759,-10000.01,0.00010491,2]
[399778368,1766664778879,-10000.01,0.00010491,2]
[399778369,1766664778983,-10000.01,0.00010491,2]
[399778370,1766664780591,-469.56049341,0.00010491,2]
[399778371,1766664782288,-300.0,0.0001049,2]
[399778372,1766664782324,-9400.01,0.00010491,2]
[399778373,1766664783256,-243.11394327,0.00010491,2]
[399778374,1766664784658,-218.97806842,0.00010491,2]
[399778375,1766664786166,-369.7593055,0.00010491,2]
[399778376,1766664786327,-10000.01,0.00010491,2]
[399778377,1766664786456,-10000.01,0.00010491,2]
[399778378,1766664786570,-10000.01,0.00010491,2]
[399778379,1766664786685,-10000.01,0.00010491,2]
[399778380,1766664786794,-10000.01,0.00010491,2]
[399778381,1766664786921,-10000.01,0.00010491,2]
[399778382,1766664787056,-10000.01,0.00010491,2]
[399778383,1766664789257,-155.26093895,0.0001049,2]
[399778384,1766664791211,-387.67651302,0.0001049,2]
[399778385,1766664793124,-213.09068168,0.0001049,2]
[399778386,1766664794685,-443.97186635,0.0001049,2]
[399778387,1766664794721,-9112.0662673,0.00010491,2]
[399778388,1766664794826,-10000.01,0.00010491,2]
[399778389,1766664795625,-521.77459167,0.00010491,2]
[399778390,1766664798213,-235.73486716,0.00010491,2]
[399778391,1766664800937,-259.36606633,0.00010491,2]
[399778392,1766664802753,-10000.01,0.00010491,2]
[399778393,1766664802883,-10000.01,0.00010491,2]
[399778394,1766664803000,-258.31429703,0.00010491,2]
[399778395,1766664804762,-174.72569709,0.00010491,2]
[399778396,1766664806049,-10000.01,0.00010491,2]
[399778397,1766664806265,-276.18542143,0.00010491,2]
[399778398,1766664806281,-10000.01,0.00010491,2]
[399778399,1766664806364,-10000.01,0.00010491,2]
[399778400,1766664806485,-10000.01,0.00010491,2]
[399778401,1766664806604,-10000.01,0.00010491,2]
[399778402,1766664807943,-703.30915352,0.00010491,2]
[399778403,1766664809830,-215.48741753,0.00010491,2]
[399778404,1766664810263,-10000.01,0.00010491,2]
[399778405,1766664810385,-10000.01,0.00010491,2]
[399778406,1766664812525,-286.11407827,0.00010491,2]
[399778407,1766664814635,-10000.01,0.00010491,2]
[399778408,1766664814796,-325.56477699,0.00010491,2]
[399778409,1766664814812,-10000.01,0.00010491,2]
[399778410,1766664814909,-10000.01,0.00010491,2]
[399778411,1766664815028,-10000.01,0.00010491,2]
[399778412,1766664815150,-10000.01,0.00010491,2]
[399778413,1766664816754,-218.4614165,0.00010491,2]
[399778414,1766664818281,-240.72728583,0.00010491,2]
[399778415,1766664820717,-341.16975742,0.00010491,2]
[399778416,1766664821629,-10000.01,0.00010491,2]
[399778417,1766664821705,-10000.01,0.00010491,2]
[399778418,1766664821818,-10000.01,0.00010491,2]
[399778419,1766664821941,-10000.01,0.00010491,2]
[399778420,1766664825723,-313.01347322,0.00010491,2]
[399778421,1766664827261,-162.74,0.00010491,2]
[399778422,1766664829372,-238.02179816,0.00010491,2]
[399778423,1766664830953,-222.8058211,0.00010491,2]
[399778424,1766664832921,-10000.01,0.00010491,2]
[399778425,1766664833033,-10000.01,0.00010491,2]
[399778426,1766664833144,-10000.01,0.00010491,2]
[399778427,1766664833278,-10000.01,0.00010491,2]
[399778428,1766664834769,-202.2247571,0.00010491,2]
[399778429,1766664836272,-10000.01,0.00010491,2]
[399778430,1766664836478,-10000.01,0.00010491,2]
[399778431,1766664837398,-287.94946186,0.00010491,2]
[399778432,1766664838884,-300.0,0.00010491,2]
[399778433,1766664840414,-10000.01,0.00010491,2]
[399778434,1766664840576,-10000.01,0.00010491,2]
[399778435,1766664840703,-10000.01,0.00010491,2]
[399778436,1766664842121,-162.8662351,0.0001049,2]
[399778437,1766664844743,-137.1337649,0.0001049,2]
[399778438,1766664844796,-9725.7424702,0.00010491,2]
[399778439,1766664844812,-10000.01,0.00010491,2]
[399778440,1766664844918,-170.87836276,0.00010491,2]
[399778441,1766664848096,-194.10623019,0.00010491,2]
[399778442,1766664848574,-55.89376981,0.00010491,2]
[399778443,1766664848616,-9888.22246038,0.00010491,2]
[399778444,1766664848964,-10000.01,0.00010491,2]
[399778445,1766664849004,-10000.01,0.00010491,2]
[399778446,1766664849194,-10000.01,0.00010491,2]
[399778447,1766664849751,-10000.01,0.00010491,2]
[399778448,1766664850083,-159.44808783,0.00010491,2]
[399778449,1766664851510,-10000.01,0.00010491,2]
[399778450,1766664851663,-10000.01,0.00010491,2]
[399778451,1766664852143,-275.6584545,0.00010491,2]
[399778452,1766664853576,-200.13488385,0.00010491,2]
[399778453,1766664855286,-342.9528579,0.00010491,2]
[399778454,1766664856690,-415.60601092,0.00010491,2]
[399778455,1766664858778,-500.0,0.00010491,2]
[399778456,1766664861110,-324.40644022,0.00010491,2]
[399778457,1766664864407,-273.52029713,0.00010491,2]
[399778458,1766664867123,-352.18656946,0.00010491,2]
[399778459,1766664869459,-251.1868518,0.00010491,2]
[399778460,1766664901235,300.0,0.0001049,2]
[399778461,1766664901494,300.0,0.0001049,2]
[399778462,1766664901694,1200.0,0.0001049,2]
[399778463,1766664901737,150.0,0.0001049,2]
[399778464,1766664907838,200.0,0.00010491,2]
[399778465,1766664921461,500.0,0.0001049,2]
[399778466,1766664921502,500.0,0.0001049,2]
[399778467,1766664921548,500.0,0.0001049,2]
[399778468,1766664921591,500.0,0.0001049,2]
[399778469,1766664921636,500.0,0.0001049,2]
[399778470,1766664921681,500.0,0.0001049,2]
[399778471,1766664921723,500.0,0.0001049,2]
[399778472,1766664921767,500.0,0.0001049,2]
[399778473,1766664921809,500.0,0.0001049,2]
[399778474,1766664921854,500.0,0.0001049,2]
[399778475,1766664921898,500.0,0.0001049,2]
[399778476,1766664921946,370.99920742,0.0001049,2]
[399778477,1766664921986,500.0,0.0001049,2]
[399778478,1766664922027,500.0,0.0001049,2]
[399778479,1766664922091,500.0,0.0001049,2]
[399778480,1766664922142,479.01079258,0.0001049,2]
[399778481,1766664922169,20.98920742,0.0001049,2]
[399778482,1766664922226,500.0,0.0001049,2]
[399778483,1766664922270,500.0,0.0001049,2]
[399778484,1766664922313,500.0,0.0001049,2]
[399778485,1766664922356,500.0,0.0001049,2]
[399778486,1766664922407,500.0,0.0001049,2]
[399778487,1766664922456,500.0,0.0001049,2]
[399778488,1766664955288,500.0,0.0001049,2]
[399778490,1766664960361,265.64637272,0.0001049,2]
[399778491,1766664960465,748.81780845,0.00010391,2]
[399778492,1766664982964,157.64100285,0.0001049,2]
[399778493,1766664983607,171.0,9e-07,2]
[399778494,1766665021365,300.0,0.0001049,2]